bitfinex/quotes_SOLUSD_20240622
["timestamp","ask_amount","ask_price","bid_price","bid_amount"]
[1719042729066,7.413,134.9,134.85,52.4155]
[1719042729569,7.4134,134.89,134.85,45.0]
[1719042729765,7.413,134.9,134.85,52.4156]
[1719042730277,7.425,134.92,134.85,52.4156]
[1719042731182,7.4125,134.91,134.85,52.4156]
[1719042731861,7.425,134.92,134.85,45.0]
[1719042732186,7.4126,134.91,134.85,52.4156]
[1719042732478,7.4126,134.91,134.85,58.9944]
[1719042734292,7.4129,134.9,134.85,58.9944]
[1719042736582,26.865,134.94,134.85,51.579]
[1719042736967,26.865,134.94,134.86,7.4147]
[1719042737161,45.3928,134.94,134.87,45.0]
[1719042737357,7.4126,134.91,134.86,7.4148]
[1719042737667,7.4126,134.91,134.87,45.0]
[1719042739190,7.412,134.92,134.87,45.0]
[1719042739899,44.6,134.97,134.87,45.0]
[1719042739900,18.5293,134.98,134.88,15.5158]
[1719042740069,21.8605,135.03,134.92,7.4116]
[1719042740272,7.4092,134.97,134.93,45.0]
[1719042740784,7.4092,134.97,134.92,52.4117]
[1719042741564,7.4085,134.98,134.93,7.4112]
[1719042742068,7.4085,134.98,134.92,52.4115]
[1719042742282,7.4091,134.97,134.92,45.0]
[1719042742771,7.4097,134.96,134.9,7.4126]
[1719042742979,7.4102,134.95,134.91,45.0]
[1719042743169,7.4102,134.95,134.9,7.4126]
[1719042743366,7.4096,134.96,134.9,7.4126]
[1719042743795,37.9599,134.99,134.88,15.5158]
[1719042743796,7.4111,134.94,134.88,15.5158]
[1719042743966,7.4111,134.94,134.88,22.9294]
[1719042744365,7.4113,134.93,134.88,22.9294]
[1719042744675,7.4113,134.93,134.88,15.5158]
[1719042745479,7.4104,134.95,134.87,18.5358]
[1719042745684,7.4104,134.95,134.88,45.0]
[1719042745884,7.4104,134.95,134.9,7.4125]
[1719042747000,7.4096,134.96,134.91,7.4123]
[1719042747382,7.4098,134.96,134.91,7.4121]
[1719042747900,7.4098,134.96,134.9,7.4126]
[1719042748212,7.4098,134.96,134.91,45.0]
[1719042749217,7.4098,134.96,134.91,52.4122]
[1719042749401,7.4092,134.97,134.91,52.4122]
[1719042750086,7.4096,134.96,134.91,52.4122]
[1719042750916,7.4103,134.95,134.91,45.0]
[1719042751086,64.04,134.99,134.88,7.4139]
[1719042751285,7.4109,134.94,134.89,45.0]
[1719042751706,7.4109,134.94,134.89,52.4133]
[1719042752713,7.4109,134.94,134.89,45.0]
[1719042753091,7.4109,134.94,134.89,52.4133]
[1719042753488,7.4103,134.95,134.89,52.4133]
[1719042753708,7.4103,134.95,134.9,7.4128]
[1719042754104,7.4107,134.94,134.89,52.4132]
[1719042755503,7.4113,134.93,134.88,7.4138]
[1719042757411,13.8913,134.93,134.88,7.4138]
[1719042757908,6.48,134.93,134.87,6.48]
[1719042758127,6.48,134.93,134.9,7.4127]
[1719042758417,6.48,134.93,134.89,7.4132]
[1719042758786,6.48,134.93,134.88,51.48]
[1719042758990,6.48,134.93,134.89,7.4132]
[1719042760622,6.48,134.93,134.88,51.48]
[1719042761303,6.48,134.93,134.89,7.4134]
[1719042763298,13.8912,134.93,134.88,58.8937]
[1719042764015,7.4112,134.93,134.88,58.8937]
[1719042764213,7.4109,134.94,134.89,7.4134]
[1719042764622,6.48,134.93,134.89,7.4134]
[1719042766395,20.0,134.98,134.89,6.48]
[1719042766610,6.48,134.96,134.92,7.4112]
[1719042767617,13.8894,134.97,134.92,13.8912]
[1719042771625,13.8894,134.97,134.92,7.4112]
[1719042773311,13.8898,134.96,134.91,13.8923]
[1719042773514,13.8898,134.96,134.92,45.0]
[1719042773829,65.8027,135.0,134.92,45.0]
[1719042774003,18.5199,134.99,134.91,51.48]
[1719042774325,13.8893,134.97,134.92,7.4117]
[1719042774516,6.48,134.97,134.91,45.0]
[1719042774726,7.4101,134.95,134.91,45.0]
[1719042775207,13.8898,134.96,134.91,52.4122]
[1719042777025,6.48,134.95,134.91,52.4122]
[1719042777521,13.8902,134.95,134.9,15.1143]
[1719042777720,18.5223,134.98,134.88,7.4136]
[1719042777721,6.48,134.93,134.88,7.4136]
[1719042777921,6.48,134.92,134.88,7.4136]
[1719042778119,7.4104,134.95,134.88,6.48]
[1719042778328,7.4104,134.95,134.89,7.4132]
[1719042778508,6.48,134.93,134.89,7.4132]
[1719042779119,13.8913,134.93,134.88,13.8937]
[1719042779814,6.48,134.93,134.88,13.8937]
[1719042780326,13.8912,134.93,134.88,13.8937]
[1719042781029,7.4118,134.92,134.87,7.4143]
[1719042781235,13.8918,134.92,134.88,45.0]
[1719042782925,13.8918,134.92,134.87,13.8943]
[1719042784144,6.48,134.92,134.87,13.8943]
[1719042785113,6.48,134.92,134.88,7.4139]
[1719042785536,13.8914,134.93,134.88,7.4139]
[1719042786019,13.8914,134.93,134.87,6.48]
[1719042786412,13.8914,134.93,134.88,7.4137]
[1719042786908,13.8919,134.92,134.87,13.8943]
[1719042789920,6.48,134.92,134.87,6.48]
[1719042790118,6.48,134.89,134.85,7.4153]
[1719042790658,6.48,134.88,134.85,7.4153]
[1719042790944,6.48,134.89,134.85,7.4153]
[1719042791236,7.413,134.9,134.85,7.4153]
[1719042791444,13.893,134.9,134.85,13.8953]
[1719042791824,22.1886,134.95,134.82,40.3463]
[1719042791825,7.4118,134.92,134.87,7.4141]
[1719042792137,13.8918,134.92,134.87,7.4141]
[1719042792644,6.48,134.92,134.88,7.4138]
[1719042793244,13.8918,134.92,134.87,13.8943]
[1719042794721,7.4123,134.91,134.87,6.48]
[1719042795116,7.4116,134.93,134.87,13.8941]
[1719042795320,7.4116,134.93,134.87,6.48]
[1719042795550,6.48,134.93,134.88,6.48]
[1719042795848,7.4112,134.93,134.88,13.8937]
[1719042796024,7.4112,134.93,134.89,7.94966874]
[1719042796225,7.4112,134.93,134.89,1.46966874]
[1719042796533,7.4112,134.93,134.88,13.8937]
[1719042796919,7.4112,134.93,134.89,6.48]
[1719042798731,7.4118,134.92,134.89,6.48]
[1719042799552,7.4118,134.92,134.88,6.48]
[1719042800345,7.4114,134.93,134.88,13.8939]
[1719042800552,7.4114,134.93,134.89,6.48]
[1719042801392,29.6444,134.95,134.9,58.8926]
[1719042801548,23.1644,134.95,134.9,58.8926]
[1719042801857,29.6444,134.95,134.9,58.8926]
[1719042802029,7.4107,134.94,134.9,52.4126]
[1719042802232,7.4107,134.94,134.9,45.0]
[1719042803454,6.48,134.94,134.88,6.48]
[1719042803631,6.48,134.94,134.89,45.0]
[1719042803833,7.4115,134.93,134.89,45.0]
[1719042804525,6.48,134.94,134.89,45.0]
[1719042804526,7.4107,134.94,134.89,52.4134]
[1719042804724,13.8907,134.94,134.89,58.8934]
[1719042804943,23.1646,134.95,134.9,7.4128]
[1719042805143,29.6446,134.95,134.9,7.4128]
[1719042805529,29.6446,134.95,134.9,13.8928]
[1719042805730,7.4108,134.94,134.9,6.48]
[1719042805959,22.234,134.95,134.89,52.4132]
[1719042805960,6.48,134.93,134.89,45.0]
[1719042806139,15.754,134.95,134.86,13.8946]
[1719042806140,7.4124,134.91,134.86,13.8946]
[1719042806340,7.4124,134.91,134.84,16.5378]
[1719042806341,7.4129,134.9,134.85,13.8953]
[1719042806545,13.8925,134.91,134.86,52.415]
[1719042807443,18.528,134.94,134.85,6.48]
[1719042807444,13.8932,134.9,134.85,7.4154]
[1719042807739,6.48,134.9,134.82,6.0188]
[1719042807947,6.48,134.9,134.83,13.8964]
[1719042807948,13.8941,134.88,134.83,13.8964]
[1719042808147,6.48,134.88,134.84,7.4161]
[1719042808658,6.48,134.88,134.83,13.8966]
[1719042808659,13.8941,134.88,134.83,13.8966]
[1719042809259,6.48,134.88,134.84,7.4161]
[1719042809832,6.1097,134.87,134.77,18.5489]
[1719042810151,6.48,134.83,134.78,7.4194]
[1719042810544,7.4155,134.86,134.8,7.418]
[1719042810738,0.51238986,134.88,134.78,18.5485]
[1719042811066,6.48,134.85,134.8,6.48]
[1719042811241,6.48,134.84,134.8,7.4183]
[1719042811857,70.52,134.89,134.8,7.4183]
[1719042811858,7.4136,134.89,134.83,7.4163]
[1719042812056,13.8936,134.89,134.84,7.4158]
[1719042812637,13.8936,134.89,134.83,13.8965]
[1719042813051,36.7487,134.9,134.83,6.48]
[1719042813252,31.2293684,134.93,134.87,7.4145]
[1719042813447,7.4125,134.91,134.84,45.0]
[1719042813652,13.8925,134.91,134.84,45.0]
[1719042813853,6.48,134.9,134.84,45.0]
[1719042814258,6.48,134.9,134.83,45.0]
[1719042814565,6.48,134.9,134.85,6.9152]
[1719042814860,13.8929,134.9,134.85,6.9152]
[1719042815249,6.48,134.9,134.85,6.9152]
[1719042815452,13.8925,134.91,134.86,7.415]
[1719042815653,7.412,134.92,134.86,7.415]
[1719042815857,6.48,134.91,134.86,7.415]
[1719042816565,13.8923,134.91,134.86,7.415]
[1719042819268,7.412,134.92,134.83,63.5406]
[1719042819475,7.4126,134.91,134.86,7.4148]
[1719042819675,13.8926,134.91,134.86,7.4148]
[1719042819862,7.4129,134.9,134.85,7.4154]
[1719042820046,7.4129,134.9,134.86,45.0]
[1719042820754,7.4135,134.89,134.84,7.416]
[1719042820956,7.414,134.88,134.85,45.0]
[1719042821151,13.8932,134.9,134.85,52.4155]
[1719042821973,13.8932,134.9,134.85,58.8955]
[1719042822277,13.8932,134.9,134.85,52.4155]
[1719042822966,6.48,134.9,134.85,52.4155]
[1719042823169,6.48,134.9,134.86,7.415]
[1719042823356,7.4125,134.91,134.86,7.415]
[1719042823675,7.4125,134.91,134.86,13.895]
[1719042823899,13.8925,134.91,134.86,13.895]
[1719042824863,13.8925,134.91,134.86,7.415]
[1719042825074,13.8925,134.91,134.86,13.895]
[1719042826275,7.4129,134.9,134.86,6.48]
[1719042826475,7.4129,134.9,134.85,58.8954]
[1719042827460,7.4124,134.91,134.85,51.48]
[1719042827782,7.4124,134.91,134.86,13.8949]
[1719042827783,13.8924,134.91,134.86,13.8949]
[1719042827992,6.48,134.88,134.79,18.5463]
[1719042828273,7.4142,134.88,134.82,13.8972]
[1719042828479,13.8942,134.88,134.83,13.8965]
[1719042828651,7.4142,134.88,134.83,13.8965]
[1719042829657,7.4135,134.89,134.84,52.4158]
[1719042829956,13.8935,134.89,134.84,58.8958]
[1719042831781,13.894,134.88,134.84,45.0]
[1719042834382,6.48,134.88,134.84,52.4161]
[1719042834971,6.48,134.88,134.84,45.0]
[1719042835178,13.895,134.87,134.82,13.8968]
[1719042835363,13.895,134.87,134.83,45.0]
[1719042835560,7.425,134.9,134.83,45.0]
[1719042835771,6.48,134.88,134.84,7.416]
[1719042835971,6.48,134.88,134.85,45.0]
[1719042836690,13.8937,134.89,134.85,45.0]
[1719042838080,7.4143,134.88,134.85,45.0]
[1719042838379,13.8951,134.86,134.82,7.417]
[1719042839285,6.48,134.86,134.82,7.417]
[1719042840762,6.48,134.87,134.83,7.4165]
[1719042841560,13.8945,134.87,134.82,13.8971]
[1719042841762,6.48,134.86,134.82,7.4171]
[1719042841989,13.589,134.89,134.84,7.416]
[1719042842198,6.1753,134.89,134.85,7.4153]
[1719042842492,6.48,134.88,134.85,45.0]
[1719042842798,6.48,134.88,134.84,7.4161]
[1719042843092,6.48,134.88,134.85,7.4156]
[1719042843295,13.894,134.88,134.84,7.4159]
[1719042843589,13.894,134.88,134.83,6.48]
[1719042843590,6.48,134.87,134.83,7.4164]
[1719042843780,13.8947,134.87,134.83,7.4167]
[1719042843987,6.48,134.87,134.83,7.4167]
[1719042844679,7.4142,134.88,134.83,7.4167]
[1719042844887,13.8942,134.88,134.83,13.8967]
[1719042845366,7.4132,134.9,134.85,7.4155]
[1719042845573,7.15771969,134.92,134.84,7.4159]
[1719042845574,13.8935,134.89,134.84,7.4159]
[1719042846291,6.48,134.89,134.85,52.4155]
[1719042846591,7.4127,134.91,134.85,45.0]
[1719042846766,13.8929,134.9,134.85,45.0]
[1719042846969,6.48,134.89,134.85,45.0]
[1719042847292,6.48,134.89,134.85,52.4153]
[1719042847769,13.8934,134.89,134.85,52.4153]
[1719042848579,7.4134,134.89,134.85,45.0]
[1719042848780,13.8934,134.89,134.85,45.0]
[1719042849282,6.48,134.89,134.8,6.0913]
[1719042849496,6.48,134.88,134.83,7.4166]
[1719042849676,13.8944,134.88,134.84,45.0]
[1719042851798,13.8945,134.87,134.82,6.48]
[1719042851993,7.4158,134.85,134.8,13.5093]
[1719042852171,13.8958,134.85,134.81,7.4177]
[1719042852369,7.4158,134.85,134.81,7.4177]
[1719042853000,7.4153,134.86,134.81,7.4177]
[1719042855994,7.4156,134.85,134.81,7.4177]
[1719042856778,7.4156,134.85,134.8,7.4181]
[1719042856996,7.4156,134.85,134.8,13.8981]
[1719042857715,7.4156,134.85,134.8,7.4181]
[1719042857918,7.4156,134.85,134.8,13.8981]
[1719042859217,7.4162,134.84,134.8,13.8981]
[1719042859601,7.4162,134.84,134.8,7.4181]
[1719042859822,7.4162,134.84,134.8,13.8981]
[1719042860508,6.48,134.82,134.75,16.5608]
[1719042860721,7.4186,134.8,134.75,23.9815]
[1719042860898,13.898,134.81,134.76,14.7833329]
[1719042861101,7.4184,134.8,134.76,0.8828329]
[1719042861500,6.48,134.81,134.76,8.3033329]
[1719042861501,13.8981,134.81,134.76,8.3033329]
[1719042862313,7.4174,134.82,134.77,7.4199]
[1719042862518,22.9,134.83,134.78,7.4194]
[1719042862703,6.48,134.82,134.78,7.4194]
[1719042864197,13.8973,134.82,134.77,13.8998]
[1719042864406,13.8973,134.82,134.78,45.0]
[1719042865129,6.48,134.82,134.78,45.0]
[1719042865503,7.4181,134.81,134.78,45.0]
[1719042865727,7.4181,134.81,134.77,6.48]
[1719042865917,13.8981,134.81,134.76,8.3030329]
[1719042866096,13.8981,134.81,134.77,45.0]
[1719042867899,13.8981,134.81,134.76,14.7830329]
[1719042868317,13.8981,134.81,134.76,8.3030329]
[1719042868519,13.8981,134.81,134.76,14.7830329]
[1719042869120,13.8981,134.81,134.76,8.3030329]
[1719042869612,13.8981,134.81,134.76,16.26662363]
[1719042869818,7.4184,134.8,134.76,2.36642363]
[1719042870119,7.4184,134.8,134.76,53.84642363]
[1719042870304,13.8984,134.8,134.76,47.36642363]
[1719042870628,6.48,134.8,134.76,54.78682363]
[1719042871717,6.48,134.8,134.76,0.8828329]
[1719042871718,6.48,134.78,134.76,0.8828329]
[1719042873108,13.8995,134.78,134.76,0.8828329]
[1719042876807,44.4644,134.82,134.76,0.8828329]
[1719042877127,7.419,134.79,134.76,0.8828329]
[1719042877712,7.4195,134.78,134.76,0.8828329]
[1719042878228,13.8991,134.79,134.76,0.8828329]
[1719042879715,7.4191,134.79,134.76,0.8828329]
[1719042880717,7.4186,134.8,134.76,7.3628329]
[1719042880912,6.48,134.81,134.76,7.3628329]
[1719042881117,16.96101969,134.86,134.78,6.48]
[1719042881436,13.8977,134.82,134.77,13.8996]
[1719042882518,7.4177,134.82,134.78,6.48]
[1719042882822,13.8969,134.83,134.78,13.8994]
[1719042884151,7.4173,134.82,134.78,6.48]
[1719042884631,13.8973,134.82,134.77,13.8998]
[1719042884831,13.8973,134.82,134.78,45.0]
[1719042885440,6.48,134.82,134.78,45.0]
[1719042885635,7.4178,134.81,134.76,7.3628329]
[1719042885822,7.4178,134.81,134.77,52.4197]
[1719042886021,7.4175,134.82,134.77,58.8997]
[1719042886219,13.8975,134.82,134.77,58.8997]
[1719042886426,13.8975,134.82,134.77,52.4197]
[1719042886628,13.8975,134.82,134.77,58.8997]
[1719042886826,7.4175,134.82,134.77,58.8997]
[1719042887026,13.8975,134.82,134.77,58.8997]
[1719042887241,13.8975,134.82,134.78,1.48213956]
[1719042887735,7.4178,134.81,134.78,1.48213956]
[1719042889940,6.48,134.82,134.78,1.48213956]
[1719042890133,13.898,134.81,134.78,1.48213956]
[1719042890336,22.5776,134.81,134.76,0.8828329]
[1719042890641,13.8996,134.78,134.76,0.8828329]
[1719042892848,6.48,134.78,134.76,0.8828329]
[1719042894046,6.48,134.79,134.76,0.8828329]
[1719042894255,13.8975,134.82,134.77,7.4199]
[1719042894423,7.4175,134.82,134.78,45.0]
[1719042894625,13.8975,134.82,134.78,45.0]
[1719042898158,7.4175,134.82,134.78,45.0]
[1719042898459,13.8975,134.82,134.78,45.0]
[1719042898760,41.38664566,134.86,134.78,45.0]
[1719042899060,7.4164,134.84,134.78,45.0]
[1719042899266,7.4164,134.84,134.79,13.8986]
[1719042899559,7.4168,134.83,134.8,45.0]
[1719042899746,7.4168,134.83,134.78,7.4192]
[1719042900058,13.8968,134.83,134.79,45.0]
[1719042900450,7.4168,134.83,134.79,45.0]
[1719042900863,13.8968,134.83,134.79,45.0]
[1719042901172,7.4173,134.82,134.79,45.0]
[1719042901470,13.8973,134.82,134.77,7.4198]
[1719042901664,13.8973,134.82,134.78,45.0]
[1719042906671,13.8973,134.82,134.78,52.4194]
[1719042907177,6.48,134.79,134.76,0.8828329]
[1719042907475,1.04763938,134.84,134.76,7.3628329]
[1719042907654,6.48,134.8,134.76,0.8828329]
[1719042907851,7.4179,134.81,134.76,8.3030329]
[1719042908170,6.48,134.8,134.76,8.3030329]
[1719042909178,6.48,134.82,134.77,45.0]
[1719042909469,13.8975,134.82,134.77,7.4196]
[1719042909645,13.8975,134.82,134.78,45.0]
[1719042910479,7.4175,134.82,134.78,45.0]
[1719042910982,13.8975,134.82,134.78,45.0]
[1719042911452,7.4178,134.81,134.78,45.0]
[1719042911649,6.48,134.81,134.78,45.0]
[1719042911892,13.8993,134.79,134.76,0.8828329]
[1719042912060,13.8995,134.78,134.76,0.8828329]
[1719042912259,7.4195,134.78,134.76,0.8828329]
[1719042912789,7.419,134.79,134.76,0.8828329]
[1719042912953,6.48,134.79,134.76,0.8828329]
[1719042913158,7.4189,134.79,134.76,0.8828329]
[1719042915293,13.8989,134.79,134.76,0.8828329]
[1719042915586,15.7385,134.81,134.76,0.8828329]
[1719042915587,7.4184,134.8,134.76,0.8828329]
[1719042916152,13.8984,134.8,134.76,0.8828329]
[1719042916371,6.48,134.8,134.76,0.8828329]
[1719042916661,13.8986,134.8,134.76,0.8828329]
[1719042916856,7.4186,134.8,134.76,0.8828329]
[1719042917069,18.5443,134.82,134.76,0.8828329]
[1719042917070,22.2185,134.82,134.76,0.8828329]
[1719042917288,18.5459,134.81,134.76,0.8828329]
[1719042917780,7.4194,134.79,134.76,0.8828329]
[1719042917991,7.4195,134.78,134.76,0.8828329]
[1719042918359,13.9,134.77,134.76,0.8828329]
[1719042922387,7.42,134.77,134.76,0.8828329]
[1719042922576,13.9,134.77,134.76,0.8828329]
[1719042924997,35.32943938,134.82,134.76,0.8828329]
[1719042925168,6.48,134.78,134.76,0.8828329]
[1719042925362,7.4198,134.78,134.76,0.8828329]
[1719042925567,7.42,134.77,134.76,0.8828329]
[1719042925767,13.9,134.77,134.76,0.8828329]
[1719042926074,18.546,134.8,134.76,0.8828329]
[1719042926462,6.48,134.77,134.76,0.8828329]
[1719042926658,18.546,134.8,134.76,0.8828329]
[1719042927076,6.48,134.77,134.76,0.8828329]
[1719042927403,18.546,134.8,134.76,0.8828329]
[1719042927871,7.42,134.77,134.76,0.8828329]
[1719042928075,13.9,134.77,134.76,0.8828329]
[1719042928874,35.6676,134.77,134.68,23.9694]
[1719042929084,44.6,134.8,134.69,6.48]
[1719042929085,7.4206,134.76,134.69,6.48]
[1719042929286,13.9006,134.76,134.71,7.4229]
[1719042929665,15.5049,134.8,134.73,7.4219]
[1719042929666,7.4197,134.78,134.73,7.4219]
[1719042929994,13.8991,134.79,134.74,7.4216]
[1719042930193,6.48,134.78,134.74,7.4216]
[1719042930377,6.48,134.78,134.75,45.0]
[1719042930692,13.8991,134.79,134.75,45.0]
[1719042930897,7.419,134.79,134.75,45.0]
[1719042931073,13.8987,134.8,134.75,52.4209]
[1719042931399,13.8993,134.79,134.75,45.0]
[1719042932800,13.8996,134.78,134.75,45.0]
[1719042933005,13.8996,134.78,134.74,45.0]
[1719042934298,6.48,134.78,134.74,52.4215]
[1719042934796,7.4191,134.79,134.74,52.4215]
[1719042934986,6.48,134.78,134.74,52.4215]
[1719042936388,7.4186,134.8,134.75,7.4211]
[1719042936702,6.48,134.79,134.75,7.4211]
[1719042937371,7.4186,134.8,134.75,7.4211]
[1719042937577,6.48,134.79,134.75,7.4211]
[1719042938102,7.4186,134.8,134.75,7.4211]
[1719042938306,6.48,134.79,134.75,7.4211]
[1719042938604,13.8991,134.79,134.74,52.4214]
[1719042941986,7.4197,134.78,134.74,45.0]
[1719042942598,13.8997,134.78,134.74,45.0]
[1719042942799,7.419,134.79,134.74,52.4211]
[1719042943102,13.899,134.79,134.74,52.4211]
[1719042944625,6.48,134.79,134.75,7.4207]
[1719042944786,37.03183561,134.84,134.73,23.0246]
[1719042944787,21.5626869,134.84,134.77,6.48]
[1719042945114,6.48,134.82,134.77,6.48]
[1719042945607,21.5626869,134.84,134.78,13.8991]
[1719042945823,13.8968,134.83,134.79,45.0]
[1719042946205,7.4173,134.82,134.79,45.0]
[1719042946503,7.4173,134.82,134.78,45.0]
[1719042946905,7.4178,134.81,134.78,45.0]
[1719042948709,7.4175,134.82,134.78,45.0]
[1719042948893,13.8975,134.82,134.78,45.0]
[1719042949699,7.4175,134.82,134.78,45.0]
[1719042949916,13.8975,134.82,134.78,45.0]
[1719042950613,7.4175,134.82,134.78,52.4194]
[1719042950817,13.897,134.83,134.78,52.4194]
[1719042951697,6.48,134.81,134.73,16.5446]
[1719042952016,13.8978,134.81,134.76,13.9004]
[1719042952220,13.8975,134.82,134.77,7.42]
[1719042952521,13.8975,134.82,134.77,13.9]
[1719042952903,13.8975,134.82,134.78,45.0]
[1719042953416,7.4175,134.82,134.78,52.4193]
[1719042953716,13.8975,134.82,134.78,45.0]
[1719042954013,13.8975,134.82,134.78,52.4193]
[1719042954717,6.48,134.82,134.78,52.4193]
[1719042955709,13.8969,134.83,134.78,52.4193]
[1719042956218,7.4173,134.82,134.78,52.4193]
[1719042956597,13.8973,134.82,134.78,52.4193]
[1719042957795,7.4174,134.82,134.78,52.4193]
[1719042958213,13.8974,134.82,134.78,52.4193]
[1719042958707,13.8974,134.82,134.78,45.0]
[1719042959039,6.48,134.81,134.78,45.0]
[1719042959217,7.4187,134.8,134.78,45.0]
[1719042959398,13.8981,134.81,134.78,45.0]
[1719042960221,13.8981,134.81,134.77,16.6147]
[1719042960222,7.4185,134.8,134.77,16.6147]
[1719042960795,13.898,134.81,134.78,45.0]
[1719042961306,6.48,134.82,134.78,45.0]
[1719042961508,6.48,134.82,134.78,52.4192]
[1719042961707,6.48,134.82,134.78,45.0]
[1719042962111,19.91286194,134.87,134.79,7.4188]
[1719042962322,6.48,134.84,134.8,52.4181]
[1719042962897,13.8952,134.86,134.8,58.8981]
[1719042963116,13.8952,134.86,134.81,7.4178]
[1719042963425,14.8397,134.87,134.82,61.6147]
[1719042963605,13.8943,134.88,134.82,75.5117]
[1719042963812,13.8943,134.88,134.82,69.0317]
[1719042964111,13.8946,134.87,134.82,75.5117]
[1719042965621,6.48,134.87,134.83,7.4167]
[1719042965923,7.4135,134.89,134.84,45.0]
[1719042966224,6.48,134.88,134.84,52.416]
[1719042966730,7.4108,134.94,134.86,6.5696]
[1719042966923,18.5247,134.96,134.86,6.5696]
[1719042966924,44.4447,134.96,134.87,60.906]
[1719042967108,7.4114,134.93,134.87,74.8003]
[1719042967303,44.4447,134.96,134.89,7.413]
[1719042967304,7.4102,134.95,134.89,7.413]
[1719042967513,6.48,134.92,134.9,45.0]
[1719042967724,6.48,134.92,134.87,67.386]
[1719042968029,6.48,134.92,134.87,74.8003]
[1719042968237,25.92,134.96,134.87,67.386]
[1719042968421,6.48,134.92,134.88,7.4139]
[1719042968603,6.48,134.91,134.87,68.3204]
[1719042969219,7.4113,134.93,134.87,60.906]
[1719042970135,6.48,134.89,134.87,45.0]
[1719042970432,6.48,134.89,134.86,6.5696]
[1719042970811,6.48,134.89,134.84,23.3221]
[1719042971011,6.48,134.89,134.85,45.0]
[1719042971211,6.48,134.88,134.85,45.0]
[1719042971714,6.48,134.89,134.85,52.4154]
[1719042973123,6.48,134.9,134.86,7.4147]
[1719042973328,6.48,134.9,134.87,45.0]
[1719042973641,13.8929,134.9,134.87,45.0]
[1719042973815,13.8929,134.9,134.86,45.0]
[1719042975133,6.48,134.9,134.86,45.0]
[1719042975309,7.4125,134.91,134.86,45.0]
[1719042975513,6.48,134.9,134.86,45.0]
[1719042976826,13.8929,134.9,134.86,45.0]
[1719042977032,6.48,134.89,134.86,45.0]
[1719042979737,6.48,134.88,134.86,45.0]
[1719042979938,6.48,134.88,134.85,52.4155]
[1719042980639,6.48,134.88,134.85,45.0]
[1719042982736,7.4131,134.9,134.85,45.0]
[1719042982945,6.48,134.88,134.85,45.0]
[1719042983719,6.48,134.88,134.85,52.4156]
[1719042984846,6.48,134.88,134.85,45.0]
[1719042985217,6.48,134.88,134.85,52.4155]
[1719042985433,6.48,134.88,134.86,7.4149]
[1719042985758,6.48,134.89,134.87,45.0]
[1719042985928,6.48,134.9,134.87,45.0]
[1719042987037,13.8924,134.91,134.87,45.0]
[1719042988039,6.48,134.9,134.87,45.0]
[1719042988238,6.48,134.9,134.86,45.0]
[1719042988672,13.8929,134.9,134.86,45.0]
[1719042989166,6.48,134.89,134.86,45.0]